bitfinex-derivatives/quotes_ETHF0:USTF0_20250314
["timestamp","ask_amount","ask_price","bid_price","bid_amount"]
[1741971213263,4.24043,1936.8,1936.7,0.00773914]
[1741971213565,1.03263,1936.8,1936.7,0.00773914]
[1741971213772,1.3749,1936.8,1936.7,1.04039914]
[1741971214068,2.40751,1936.8,1936.7,0.00773914]
[1741971216872,6.29051,1936.8,1936.7,0.00773914]
[1741971217569,2.40751,1936.8,1936.7,0.00773914]
[1741971217770,2.40751,1936.8,1936.7,1.42453914]
[1741971217963,1.3749,1936.8,1936.7,2.45719914]
[1741971218368,1.03259,1936.9,1936.7,1.42453914]
[1741971218570,2.40773914,1937.0,1936.9,1.03255]
[1741971218965,1.37523914,1937.0,1936.9,1.03255]
[1741971219865,2.40773914,1937.0,1936.9,1.03255]
[1741971220466,0.00773914,1937.0,1936.9,4.24035]
[1741971223265,1.04023914,1937.0,1936.9,4.24035]
[1741971223675,0.00773914,1937.0,1936.9,4.24035]
[1741971224669,9.14e-06,1937.0,1936.9,8.09535]
[1741971224867,1.338,1937.6,1937.5,1.03223]
[1741971225069,0.6618,1937.7,1937.5,1.03223]
[1741971225070,0.682,1937.9,1937.7,1.0321]
[1741971225268,2.37005,1937.9,1937.8,1.4155]
[1741971225767,2.37002,1937.9,1937.8,1.4155]
[1741971226369,1.03218,1937.6,1937.5,3.2078]
[1741971226574,1.03218,1937.6,1937.5,4.6233]
[1741971226872,2.58037,1937.7,1937.3,3.2078]
[1741971227073,1.03229,1937.4,1937.3,3.2078]
[1741971227674,7.2058,1937.6,1937.1,3.2078]
[1741971227972,1.4175,1937.3,1937.2,1.03239]
[1741971228175,1.0323,1937.4,1937.3,1.03234]
[1741971228371,6.29977,1937.5,1937.2,1.456]
[1741971228569,0.6618,1937.7,1937.4,3.2078]
[1741971228771,1.03218,1937.6,1937.5,3.16212]
[1741971228964,2.44968,1937.6,1937.5,2.1299]
[1741971229171,1.4175,1937.6,1937.5,2.48823]
[1741971229377,2.44968,1937.6,1937.5,2.48823]
[1741971229573,3.21553914,1938.0,1937.5,1.456]
[1741971229774,1.44843914,1938.0,1937.9,1.03202]
[1741971230077,1.44843914,1938.0,1937.8,3.2078]
[1741971230380,1.03202,1937.9,1937.8,3.21553914]
[1741971230772,1.03202,1937.9,1937.8,4.54413914]
[1741971231077,1.44843914,1938.0,1937.8,4.54413914]
[1741971231276,1.44843914,1938.0,1937.8,3.21553914]
[1741971231477,1.03202,1937.9,1937.8,3.21553914]
[1741971231874,1.03202,1937.9,1937.8,0.00773914]
[1741971232078,4.89202,1937.9,1937.8,0.00773914]
[1741971234574,4.89202,1937.9,1937.8,1.45793914]
[1741971234986,4.89202,1937.9,1937.8,0.00773914]
[1741971235283,9.14e-06,1938.0,1937.8,0.00773914]
[1741971235475,9.14e-06,1938.0,1937.9,4.23982]
[1741971235784,9.14e-06,1938.0,1937.9,5.69002]
[1741971237683,9.14e-06,1938.0,1937.9,8.19002]
[1741971237881,2.45133,1938.5,1937.9,13.156]
[1741971238082,5.78668,1938.8,1938.4,1.03172]
[1741971238083,1.03168,1938.6,1938.4,1.03172]
[1741971238278,6.29619,1938.8,1938.6,1.03163]
[1741971238476,6.29614,1938.8,1938.7,1.4223]
[1741971238671,2.45114,1938.8,1938.7,4.6301]
[1741971239081,2.45114,1938.8,1938.7,1.4223]
[1741971241292,4.6274,1938.8,1938.4,5.998]
[1741971241586,1.03197,1938.0,1937.9,3.8679]
[1741971241785,1.03197,1938.0,1937.9,5.2053]
[1741971241972,2.7496,1938.2,1937.8,0.00773914]
[1741971242176,1.03229,1937.4,1937.3,9.2058]
[1741971242375,6.43101,1938.0,1937.4,1.03226]
[1741971242580,1.3957,1937.7,1937.5,1.0322]
[1741971242783,1.3957,1937.7,1937.6,1.4041]
[1741971242784,2.42783,1937.7,1937.6,1.4041]
[1741971243184,3.2078,1937.9,1937.6,1.4041]
[1741971243385,0.00773914,1937.8,1937.6,2.43624]
[1741971243689,1.03213,1937.7,1937.6,2.43624]
[1741971243987,1.03213,1937.7,1937.5,0.00773914]
[1741971243988,0.00773914,1937.8,1937.7,2.43623]
[1741971244186,0.00773914,1937.8,1937.7,5.64403]
[1741971244480,0.00773914,1937.8,1937.7,11.64203]
[1741971244687,1.03202,1937.9,1937.8,1.03203]
[1741971244876,1.03202,1937.9,1937.8,1.03207]
[1741971245076,2.57981,1938.1,1937.7,11.64199]
[1741971245392,1.03207,1937.8,1937.7,10.6099]
[1741971245689,1.03207,1937.8,1937.7,4.6119]
[1741971245884,1.03207,1937.8,1937.7,1.4041]
[1741971246188,0.00769103,1937.9,1937.7,4.6119]
[1741971246391,1.03207,1937.8,1937.7,4.6119]
[1741971246682,0.00769103,1937.9,1937.5,3.21553914]
[1741971246888,0.00769103,1937.9,1937.6,1.4156]
[1741971246889,1.03213,1937.7,1937.6,1.4156]
[1741971247077,1.03218,1937.6,1937.5,0.00773914]
[1741971247278,2.58065,1937.5,1937.1,5.998]
[1741971247480,1.03245,1937.1,1937.0,5.6559]
[1741971247682,1.03245,1937.1,1937.0,3.2078]
[1741971247988,1.03255,1936.9,1936.8,6.34211]
[1741971248189,7.1038,1937.4,1936.8,7.8909]
[1741971248382,1.03243,1937.2,1937.1,1.03244]
[1741971248583,1.03243,1937.2,1937.1,1.4378]
[1741971248782,1.3493,1937.3,1937.1,1.4378]
[1741971248990,1.03239,1937.2,1937.1,2.47021]
[1741971249194,1.03239,1937.2,1937.1,1.4378]
[1741971249383,1.3493,1937.3,1937.1,1.4378]
[1741971249684,0.00769103,1937.9,1937.2,5.78879]
[1741971249889,1.03222,1937.6,1937.4,1.03224]
[1741971250187,1.03222,1937.6,1937.5,1.4378]
[1741971250591,1.3493,1937.7,1937.4,3.2078]
[1741971250895,1.03214,1937.7,1937.6,1.03215]
[1741971251186,1.03218,1937.6,1937.5,1.03219]
[1741971251387,1.03218,1937.6,1937.5,2.47709]
[1741971252290,1.3348,1937.7,1937.6,1.03218]
[1741971252493,2.36693,1937.7,1937.6,1.03218]
[1741971252691,2.58775103,1937.9,1937.5,1.4449]
[1741971252692,0.00769103,1937.9,1937.5,1.4449]
[1741971252995,1.03213,1937.7,1937.6,4.23997]
[1741971253993,1.03213,1937.7,1937.6,3.2078]
[1741971255090,1.03213,1937.7,1937.6,4.23998]
[1741971255689,1.03218,1937.6,1937.5,2.47709]
[1741971255890,1.3198,1937.6,1937.5,2.47709]
[1741971256195,2.35198,1937.6,1937.5,2.47709]
[1741971256392,0.73539103,1937.9,1937.6,2.58042]
[1741971256592,1.03209,1937.8,1937.7,1.03207]
[1741971256798,0.00769103,1937.9,1937.8,1.03207]
[1741971257099,0.00769103,1937.9,1937.8,0.6858]
[1741971257100,1.03971103,1937.9,1937.8,0.6858]
[1741971257298,0.00769103,1937.9,1937.7,2.37708]
[1741971257500,2.44857,1937.8,1937.7,2.37708]
[1741971258098,1.4165,1937.8,1937.7,2.37708]
[1741971258294,0.00769103,1937.9,1937.7,1.345]
[1741971258497,0.00769103,1937.9,1937.7,2.37708]
[1741971258498,1.03207,1937.8,1937.7,2.37708]
[1741971258901,2.44857,1937.8,1937.7,2.37708]
[1741971259099,2.44857,1937.8,1937.7,1.345]
[1741971259305,1.03213,1937.7,1937.6,4.5554]
[1741971259500,2.44863,1937.7,1937.6,4.5554]
[1741971259695,3.17303,1937.7,1937.6,3.2078]
[1741971260003,1.03218,1937.6,1937.5,7.03023]
[1741971260203,1.03218,1937.6,1937.5,5.998]
[1741971260394,2.34988,1937.6,1937.5,7.416]
[1741971260796,0.7244,1937.7,1937.5,7.416]
[1741971260997,3.07427,1937.7,1937.6,1.03218]
[1741971261192,2.0421,1937.7,1937.6,1.03218]
[1741971261403,3.07423,1937.7,1937.6,1.03218]
[1741971261806,1.03218,1937.6,1937.5,9.17111]
[1741971262107,2.0421,1937.7,1937.5,8.1389]
[1741971262303,1.03218,1937.6,1937.5,9.17109]
[1741971263505,2.41228,1937.6,1937.5,9.17109]
[1741971263702,2.41228,1937.6,1937.5,7.416]
[1741971264004,2.41228,1937.6,1937.5,1.418]
[1741971264201,1.03223,1937.5,1937.4,3.2078]
[1741971264400,1.03229,1937.4,1937.3,2.38762]
[1741971266007,1.03229,1937.4,1937.3,1.3553]
[1741971266201,5.78862,1937.4,1937.0,1.03246]
[1741971266506,1.03245,1937.1,1937.0,1.03246]
[1741971266701,1.03255,1936.9,1936.8,8.43841]
[1741971266907,1.03255,1936.9,1936.8,1.4078]
[1741971267100,1.03255,1936.9,1936.8,2.44041]
[1741971267296,2.40625,1936.9,1936.8,2.44041]
[1741971267903,5.78827,1937.6,1937.0,2.58125]
[1741971268102,1.03239,1937.2,1937.1,2.4402]
[1741971268299,1.03239,1937.2,1937.1,3.1283]
[1741971268708,1.3737,1937.4,1937.1,2.0959]
[1741971268910,1.3737,1937.4,1937.2,1.4078]
[1741971269206,0.7185,1937.5,1937.4,1.03229]
[1741971269405,1.03234,1937.3,1937.2,2.44015]
[1741971270006,1.03234,1937.3,1937.2,2.44019]
[1741971270206,1.03234,1937.3,1937.2,1.4078]
[1741971270604,2.44284,1937.3,1937.2,1.4078]
[1741971270802,1.03239,1937.2,1937.1,0.6881]
[1741971271004,2.44289,1937.2,1937.1,2.1339]
[1741971271307,1.03249,1937.1,1936.8,5.998]
[1741971271612,1.03255,1936.9,1936.8,8.47639]
[1741971271904,1.03255,1936.9,1936.8,7.03059]
[1741971272412,1.03255,1936.9,1936.8,7.03057]
[1741971273911,1.03255,1936.9,1936.8,7.03061]
[1741971274916,3.12304,1937.0,1936.9,1.03255]
[1741971275115,2.0905,1937.0,1936.8,5.998]
[1741971275311,3.833,1937.3,1936.9,5.78907]
[1741971275516,1.03246,1937.2,1937.1,1.03242]
[1741971276218,1.4476,1937.3,1937.2,1.03239]
[1741971276219,2.47997,1937.3,1937.2,1.03239]
[1741971276414,1.71229,1937.5,1937.4,1.03229]
[1741971276709,1.03239,1937.2,1937.1,5.998]
[1741971276915,1.03239,1937.2,1937.1,9.2058]
[1741971277119,1.03239,1937.2,1937.1,5.998]
[1741971277504,4.24019,1937.2,1937.1,5.998]
[1741971277715,4.24019,1937.2,1936.8,3.9273]
[1741971277716,4.6554,1937.2,1936.8,3.9273]
[1741971278017,4.6554,1937.2,1936.7,0.00773914]
[1741971278018,1.03261,1936.8,1936.7,0.00773914]
[1741971278519,4.24041,1936.8,1936.7,0.00773914]
[1741971278914,5.58141,1936.8,1936.7,0.00773914]
[1741971282418,2.37361,1936.8,1936.7,0.00773914]
[1741971285708,6.17061,1936.8,1936.7,0.00773914]
[1741971286813,9.37841,1936.8,1936.7,0.00773914]
[1741971287114,2.58172,1936.7,1936.3,1.4045]
[1741971287320,1.03274,1936.6,1936.5,1.03273]
[1741971287715,4.4571,1936.9,1936.5,3.2078]
[1741971287926,1.03271,1936.7,1936.6,1.3572]
[1741971288215,1.03271,1936.7,1936.6,2.38991]
[1741971288920,3.25024914,1936.9,1936.6,1.3572]
[1741971289128,1.03266,1936.7,1936.6,1.03266]
[1741971289333,1.03265,1936.8,1936.7,1.03261]
[1741971289623,1.03266,1936.7,1936.6,7.03067]
[1741971290523,1.03264,1936.8,1936.7,1.03261]
[1741971290825,2.07473914,1936.9,1936.8,1.03261]
[1741971290826,0.00773914,1936.9,1936.8,1.03261]
[1741971291424,1.04028914,1936.9,1936.8,1.03261]
[1741971291726,1.03266,1936.7,1936.6,1.7034]
[1741971292522,1.03271,1936.6,1936.5,4.24826914]
[1741971293022,2.44289,1936.7,1936.6,1.03271]
[1741971294512,0.00773914,1936.9,1936.8,1.03261]
[1741971294719,1.04028914,1936.9,1936.8,1.03261]
[1741971295115,0.00773914,1936.9,1936.8,7.03061]
[1741971295622,1.04028914,1936.9,1936.8,5.998]
[1741971295820,2.45788914,1936.9,1936.8,5.998]
[1741971296417,1.42533914,1936.9,1936.5,5.79744914]
[1741971296718,3.2078,1937.5,1936.7,3.2078]
[1741971296926,1.03218,1937.6,1937.5,1.0322]
[1741971297118,1.03218,1937.6,1937.5,4.24]
[1741971297319,1.03218,1937.6,1937.5,3.2078]
[1741971297514,1.03223,1937.5,1937.4,1.03224]
[1741971298222,1.03229,1937.4,1937.3,4.96092914]
[1741971299022,1.03229,1937.4,1937.3,0.72083914]
[1741971299216,1.03229,1937.4,1937.3,0.00773914]
[1741971299713,1.91799,1937.4,1937.3,0.00773914]
[1741971300420,1.03255,1936.9,1936.8,5.998]
[1741971300624,3.788,1937.2,1936.7,3.2078]
[1741971300919,3.788,1937.2,1936.9,3.2078]
[1741971301223,1.03241,1937.2,1937.1,1.0324]
[1741971301415,1.03241,1937.2,1937.1,4.2402]
[1741971301614,0.73423914,1937.6,1937.1,5.78891]
[1741971301810,1.03225,1937.5,1937.4,1.03224]
[1741971302021,0.00773914,1937.6,1937.5,1.03223]
[1741971302219,1.03991914,1937.6,1937.5,4.24003]
[1741971302418,0.00773914,1937.6,1937.4,5.998]
[1741971302620,1.03995914,1937.6,1937.5,1.03223]
[1741971303125,0.00773914,1937.6,1937.4,5.998]
[1741971303321,1.03995914,1937.6,1937.5,1.03223]
[1741971304220,0.00773914,1937.6,1937.5,1.03223]
[1741971304523,1.03991914,1937.6,1937.5,1.03223]
[1741971304726,0.00773914,1937.6,1937.5,4.24003]
[1741971305023,0.00773914,1937.6,1937.5,10.89913]
[1741971306223,1.03991914,1937.6,1937.5,10.89913]
[1741971306426,1.03991914,1937.6,1937.5,9.8669]
[1741971306625,1.03991914,1937.6,1937.5,5.998]
[1741971306928,1.03239,1937.2,1937.1,28.635]
[1741971307116,1.03245,1937.1,1937.0,1.43073914]
[1741971307319,2.38945,1937.1,1937.0,1.43073914]
[1741971307725,2.38945,1937.1,1937.0,0.00773914]
[1741971307928,3.07255,1937.1,1937.0,0.00773914]
[1741971309018,1.03261,1936.8,1936.7,3.2078]
[1741971309222,1.03266,1936.7,1936.6,5.998]
[1741971309426,1.03271,1936.6,1936.5,3.2078]
[1741971309825,1.03287,1936.3,1936.2,5.998]
[1741971310029,1.03298,1936.1,1936.0,0.675]
[1741971310225,1.03298,1936.1,1936.0,4.91583]
[1741971310733,1.03295,1936.2,1936.1,1.03298]
[1741971311030,1.03298,1936.1,1936.0,3.8828]
[1741971311527,1.03298,1936.1,1936.0,0.675]
[1741971311830,0.00773914,1936.4,1936.0,3.8828]
[1741971312132,1.03287,1936.3,1936.2,4.24071]
[1741971312332,1.04060914,1936.4,1936.3,1.03287]
[1741971312533,0.00773914,1936.4,1936.3,1.03287]
[1741971312829,1.03287,1936.3,1936.2,3.2078]
[1741971313030,0.00773914,1936.4,1936.2,3.2078]
[1741971313229,1.03287,1936.3,1936.2,3.2078]
[1741971313428,1.03298,1936.1,1936.0,0.675]
[1741971314128,1.03303,1936.0,1935.9,3.21553914]
[1741971315023,1.4191,1936.1,1936.0,1.03303]
[1741971315226,1.03303,1936.0,1935.9,4.24858914]
[1741971315423,1.03303,1936.0,1935.9,3.21553914]
[1741971316127,1.03303,1936.0,1935.9,4.24862914]
[1741971316327,2.43602,1936.1,1936.0,1.03303]
[1741971316529,1.03303,1936.0,1935.9,4.24859914]
[1741971316730,2.43603,1936.0,1935.9,4.24859914]
[1741971316932,0.6754,1936.2,1935.9,3.21553914]
[1741971317135,2.43601,1936.1,1936.0,1.03303]
[1741971317338,0.6754,1936.2,1935.9,3.21553914]
[1741971317530,2.0784,1936.2,1935.9,3.90433914]
[1741971317735,1.03301,1936.1,1936.0,1.03301]
[1741971318131,0.6754,1936.2,1936.1,1.03298]
[1741971318331,0.00773914,1936.4,1936.3,1.03287]
[1741971318537,0.00773914,1936.4,1936.3,4.24067]
[1741971318933,0.00773914,1936.4,1936.3,10.23867]
[1741971319137,1.3461,1936.8,1936.4,2.58199]
[1741971319436,1.03267,1936.7,1936.6,1.03267]
[1741971319635,1.03271,1936.6,1936.5,4.24053]
[1741971319834,1.03269,1936.7,1936.6,1.03269]
[1741971320036,1.03271,1936.6,1936.5,4.24055]
[1741971320235,1.03271,1936.6,1936.5,3.2078]
[1741971320839,1.03271,1936.6,1936.5,4.24057]
[1741971321040,0.6708,1936.7,1936.5,3.2078]
[1741971321343,1.4095,1936.6,1936.5,4.24051]
[1741971321638,0.00773914,1936.8,1936.5,3.2078]
[1741971321840,2.44986914,1936.8,1936.7,1.03266]
[1741971322041,1.41723914,1936.8,1936.7,1.03266]
[1741971322243,2.44984914,1936.8,1936.7,1.03266]
[1741971322443,1.03268,1936.7,1936.6,1.03268]
[1741971322638,2.44216,1936.7,1936.6,1.03268]
[1741971323035,1.4095,1936.7,1936.6,1.03268]
[1741971323232,2.44216,1936.7,1936.6,1.03268]
[1741971323430,1.03271,1936.6,1936.5,3.2078]
[1741971323739,0.00773914,1936.8,1936.5,3.2078]
[1741971323935,1.4504,1936.6,1936.5,4.24052]
[1741971324142,2.48308,1936.7,1936.6,1.03271]
[1741971324338,1.03271,1936.6,1936.5,3.2078]
[1741971324533,2.48311,1936.6,1936.5,4.24057]
[1741971324845,1.03277,1936.5,1936.4,5.998]
[1741971325034,3.81967,1936.5,1936.4,5.998]
[1741971325450,1.03287,1936.3,1936.2,1.3548]
[1741971325830,1.03287,1936.3,1936.2,2.38773]
[1741971326935,1.4146,1936.7,1936.2,2.0641]
[1741971327136,1.03281,1936.5,1936.4,1.03279]
[1741971327340,1.03277,1936.6,1936.5,1.03275]
[1741971327837,0.67243914,1936.8,1936.5,3.2078]
[1741971328039,3.11966914,1936.8,1936.7,1.03266]
[1741971328646,1.03266,1936.7,1936.6,2.39177]
[1741971329549,3.11967914,1936.8,1936.7,1.03266]
[1741971329741,3.11967914,1936.8,1936.7,1.3963]
[1741971330445,1.03271,1936.6,1936.5,9.2058]
[1741971330647,1.03287,1936.3,1936.2,9.9151]
[1741971330852,1.03287,1936.3,1936.2,4.95001]
[1741971331143,1.03287,1936.3,1936.2,0.7093]
[1741971331447,1.03287,1936.3,1936.2,1.3963]
[1741971331839,1.03287,1936.3,1936.2,2.42923]
[1741971332651,1.03287,1936.3,1936.2,1.3963]
[1741971332959,1.03287,1936.3,1936.2,2.42923]
[1741971333145,1.03287,1936.3,1936.2,1.3963]
[1741971333955,1.03287,1936.3,1936.2,5.63703]
[1741971334250,1.03287,1936.3,1936.2,3.2078]
[1741971334752,3.01067,1936.3,1936.2,4.5597]
[1741971335941,3.01067,1936.3,1936.2,1.3519]
[1741971336141,3.01067,1936.3,1935.9,3.21553914]
[1741971336142,1.03303,1936.0,1935.9,3.21553914]
[1741971336844,1.03303,1936.0,1935.9,4.64873914]
[1741971337045,2.40943,1936.0,1935.9,4.64873914]
[1741971337947,2.40943,1936.0,1935.9,5.68182914]
[1741971338251,1.03303,1936.0,1935.9,4.64873914]
[1741971338452,2.40943,1936.0,1935.9,4.64873914]
[1741971338754,2.40943,1936.0,1935.9,5.68182914]
[1741971339146,2.40943,1936.0,1935.9,3.21553914]
[1741971339446,2.40943,1936.0,1935.9,0.00773914]
[1741971340051,2.40943,1936.0,1935.9,1.35293914]
[1741971340749,2.40943,1936.0,1935.9,0.00773914]
[1741971341343,1.69011,1936.3,1936.2,1.03293]
[1741971341547,1.69013,1936.3,1936.2,1.03293]
[1741971341747,1.69013,1936.3,1936.1,4.553]
[1741971341748,1.03293,1936.2,1936.1,4.553]
[1741971341942,2.37613,1936.2,1936.1,3.2078]
[1741971343453,1.03303,1936.0,1935.9,1.04079914]
[1741971344647,1.03303,1936.0,1935.9,0.00773914]
[1741971344852,3.09253,1936.1,1936.0,1.03303]
[1741971345256,1.03303,1936.0,1935.9,1.04077914]
[1741971345553,2.40673,1936.0,1935.9,1.04077914]
[1741971346053,0.6572,1936.3,1936.0,1.033]
[1741971346353,1.03298,1936.1,1936.0,4.24079]
[1741971346748,1.03298,1936.1,1936.0,3.2078]
[1741971347251,1.03298,1936.1,1935.9,0.00773914]
[1741971347252,1.03303,1936.0,1935.9,1.04079914]
[1741971347452,1.03298,1936.2,1936.1,1.03298]
[1741971348046,1.03302,1936.1,1936.0,1.03299]
[1741971348352,1.3369,1936.2,1936.0,1.03299]
[1741971348549,0.6572,1936.3,1936.1,3.2078]
[1741971348858,1.03273,1936.6,1936.5,1.03272]
[1741971349062,1.0327,1936.7,1936.6,1.03269]
[1741971350051,1.34463914,1936.8,1936.5,3.2078]
[1741971350354,0.00773914,1936.8,1936.7,3.2078]
[1741971350551,1.04034914,1936.8,1936.7,4.24046]
[1741971350752,1.04034914,1936.8,1936.7,1.03266]
[1741971351055,1.04034914,1936.8,1936.7,5.998]
[1741971351448,1.04034914,1936.8,1936.7,7.03066]
[1741971351664,1.04034914,1936.8,1936.7,5.998]
[1741971352655,3.77473914,1936.8,1936.3,5.998]
[1741971352857,1.03282,1936.4,1936.3,5.998]
[1741971353250,1.03282,1936.4,1936.3,7.03087]
[1741971353450,0.7038,1936.5,1936.2,3.2078]
[1741971353757,1.03303,1936.0,1935.9,4.96588914]
[1741971353950,1.03299,1936.1,1936.0,1.033]
[1741971354144,1.03295,1936.2,1936.1,1.03295]
[1741971354351,1.03292,1936.3,1936.2,1.03292]
[1741971354552,1.03293,1936.2,1936.1,3.2078]
[1741971355151,1.03293,1936.2,1936.1,4.6131]
[1741971355555,1.03291,1936.3,1936.2,1.03291]
[1741971355752,1.03291,1936.3,1936.2,2.43821]
[1741971356446,1.03287,1936.3,1936.2,1.4053]
[1741971357358,4.79983,1936.4,1936.3,1.03287]
[1741971358154,1.03287,1936.3,1936.2,2.43819]
[1741971358356,1.03287,1936.3,1936.2,1.4053]
[1741971359454,4.79984,1936.4,1936.3,1.03287]
[1741971360059,1.03287,1936.3,1936.2,2.43822]
[1741971360260,4.79987,1936.4,1936.3,1.03287]
[1741971360456,4.79987,1936.4,1936.3,1.4403]
[1741971360960,3.767,1936.4,1936.3,5.68097]
[1741971361360,4.79982,1936.4,1936.3,4.6481]
[1741971361555,4.79982,1936.4,1936.3,5.68097]
[1741971362267,0.7038,1936.5,1936.4,1.03282]
[1741971362463,1.73659,1936.5,1936.4,1.4403]
[1741971362759,1.73659,1936.5,1936.4,2.47312]
[1741971362968,1.73659,1936.5,1936.4,1.4403]
[1741971363355,1.73659,1936.5,1936.4,2.47312]
[1741971363556,0.00773914,1936.8,1936.4,1.4403]
[1741971363760,4.79969,1936.7,1936.6,1.03268]
[1741971364062,1.72114914,1936.8,1936.7,1.03266]
[1741971364664,1.72114914,1936.8,1936.7,2.39166]
[1741971365961,3.04714914,1936.8,1936.7,2.39166]
[1741971366157,0.00773914,1936.8,1936.7,11.59746]
[1741971366354,4.79844,1937.2,1937.1,1.03245]
[1741971366560,1.03247,1937.1,1937.0,1.03246]
[1741971366757,2.40777,1937.1,1937.0,2.35786]
[1741971367166,2.40775,1937.1,1937.0,2.35786]
[1741971368054,2.40775,1937.1,1937.0,1.3254]
[1741971368664,3.09425,1937.1,1937.0,2.3579]
[1741971368861,2.0618,1937.1,1937.0,2.3579]
[1741971369063,1.04016914,1937.2,1937.1,1.03245]
[1741971369266,0.00773914,1937.2,1937.1,5.63285]
[1741971369562,0.6865,1937.6,1937.5,1.03223]
[1741971369959,2.0899,1937.6,1937.5,1.03223]
[1741971370164,2.0899,1937.6,1937.5,2.42483]
[1741971370360,0.6946,1937.7,1937.5,8.42283]
[1741971370574,0.7204,1937.8,1937.7,1.03213]
[1741971370763,0.00769103,1937.8,1937.7,2.42473]
[1741971373766,0.00769103,1937.8,1937.7,8.42273]
[1741971373965,5.78636,1939.1,1938.3,2.57952]
[1741971374171,1.3645,1938.6,1938.5,1.0317]
[1741971374373,1.3645,1938.6,1938.5,2.4579]
[1741971374567,2.39615,1938.6,1938.5,1.4262]
[1741971375969,2.39615,1938.6,1938.5,2.4579]
[1741971376166,2.39615,1938.6,1938.5,1.4262]
[1741971376876,1.0317,1938.5,1938.4,6.00573914]
[1741971377173,3.1594,1938.5,1938.4,7.03748914]
[1741971377373,3.1594,1938.5,1938.4,6.00573914]
[1741971378173,3.1594,1938.5,1938.4,0.00773914]
[1741971379373,6.3672,1938.5,1938.4,0.00773914]
[1741971380579,6.3672,1938.5,1938.1,1.3936]
[1741971380580,1.03191,1938.1,1938.0,5.998]
[1741971380883,1.03191,1938.1,1938.0,8.42357]
[1741971382172,1.03191,1938.1,1938.0,1.3936]
[1741971382585,1.03191,1938.1,1938.0,2.42557]
[1741971384082,1.03191,1938.1,1938.0,1.3936]
[1741971384286,1.03191,1938.1,1938.0,2.42557]
[1741971384488,2.47911,1938.1,1938.0,2.42557]
[1741971384879,2.47911,1938.1,1938.0,5.63337]
[1741971385383,0.00773914,1938.2,1938.1,1.03191]
[1741971385591,1.03959914,1938.2,1938.1,2.47101]
[1741971386182,0.00773914,1938.2,1938.1,2.47101]
[1741971386983,1.03959914,1938.2,1938.1,2.47101]
[1741971387382,0.00773914,1938.2,1938.1,2.47101]
[1741971387581,1.03959914,1938.2,1938.1,2.47101]
[1741971387784,0.00773914,1938.2,1938.1,8.46901]
[1741971388090,3.1235,1938.5,1938.4,1.03175]
[1741971388677,3.1235,1938.5,1938.4,2.41175]
[1741971388881,3.1235,1938.5,1938.4,1.38]
[1741971389088,1.03183,1938.3,1938.2,1.03183]
[1741971389287,1.03183,1938.3,1938.2,2.41183]
[1741971390188,1.03183,1938.3,1938.2,1.38]
[1741971390377,1.03183,1938.3,1938.2,2.41186]
[1741971390582,1.03183,1938.3,1938.2,1.38]
[1741971390782,1.03183,1938.3,1938.2,2.41186]
[1741971391083,2.46638,1938.4,1938.3,1.03181]
[1741971391284,2.46638,1938.4,1938.3,2.46151]
[1741971391489,2.46635,1938.4,1938.3,2.46151]
[1741971391986,2.46635,1938.4,1938.3,1.4297]
[1741971392184,2.46635,1938.4,1938.3,2.46151]
[1741971392493,2.46635,1938.4,1938.3,1.4297]
[1741971392692,1.03186,1938.2,1938.1,10.95119]
[1741971392995,2.41665,1938.3,1938.2,1.03186]
[1741971394085,2.41665,1938.3,1938.2,2.39246]
[1741971396582,2.41665,1938.3,1938.2,1.3606]
[1741971396889,1.03186,1938.2,1938.1,5.998]
[1741971397090,3.10766,1938.2,1938.1,5.998]
[1741971397595,1.03191,1938.1,1938.0,1.3267]
[1741971397790,3.04721,1938.1,1938.0,1.3267]
[1741971398184,1.03197,1938.0,1937.9,6.00573914]
[1741971398384,2.38087,1938.0,1937.9,6.00573914]
[1741971398592,2.38087,1938.0,1937.9,7.03775914]
[1741971398789,2.38087,1938.0,1937.9,8.36445914]
[1741971399092,2.38087,1938.0,1937.9,7.33243914]
[1741971399786,1.03213,1937.7,1937.6,1.3821]
[1741971400287,1.03213,1937.7,1937.6,5.62208]
[1741971400497,1.03213,1937.7,1937.6,1.3821]
[1741971400685,2.46573,1937.7,1937.6,1.3821]
[1741971400891,3.16203,1937.7,1937.6,1.3821]
[1741971403797,3.16203,1937.7,1937.6,2.41428]
[1741971404497,0.00773914,1937.8,1937.7,1.03213]
[1741971404692,0.00773914,1937.8,1937.7,5.61483]
[1741971405499,1.03980914,1937.8,1937.7,5.61483]
[1741971405700,0.00773914,1937.8,1937.7,5.61483]
[1741971407400,1.03980914,1937.8,1937.7,4.5827]
[1741971410203,1.03980914,1937.8,1937.7,5.61483]
[1741971410399,0.00773914,1937.8,1937.7,5.61483]
[1741971410903,1.03980914,1937.8,1937.7,2.40703]
[1741971412008,1.03980914,1937.8,1937.7,1.3749]
[1741971412692,2.40370914,1937.8,1937.7,1.3749]
[1741971413294,2.40370914,1937.8,1937.5,29.67593914]
[1741971413295,1.03218,1937.6,1937.5,0.00773914]
[1741971414000,5.60628,1937.6,1937.5,0.00773914]
[1741971414196,2.58081,1937.4,1937.0,0.7084]
[1741971414397,1.03245,1937.1,1937.0,4.6213]
[1741971415712,1.0325,1937.0,1936.9,0.00773914]
[1741971416013,2.4264,1937.0,1936.9,0.00773914]
[1741971417403,3.144,1937.0,1936.9,0.00773914]
[1741971422111,6.3518,1937.0,1936.9,0.00773914]
[1741971422310,2.1115,1937.0,1936.9,0.00773914]
[1741971422505,3.2078,1937.2,1936.9,1.04028914]
[1741971422506,1.03244,1937.2,1936.9,1.04028914]
[1741971422706,4.437,1937.3,1937.0,1.68946]